Cogmind - Beta 15 --- EXPLORER MODE // 2025.05.11 @ 00:15:07 // Winter2019/RPGLIKE Player: Gnomed! Result: Defending 0bPrime! Performance ------------- Evolutions (8) 4000 Regions Visited (13) 2600 Robots Destroyed (201) 1005 Value Destroyed (14407) 14407 Prototype IDs (44) 880 Alien Tech Used (0) 0 Bonus (38943) 38943 TOTAL SCORE: 61835 Bonus ------- High Alert Combat Kills 2637 Registered with UFD 300 Met Optimus in HQ 500 Scanned by Researcher 500 Destroyed Superfortress 15000 Met Optimus at Protoforge 1000 Completed Drillbomb Mission10000 Optimus Survived to 0b1 3000 Win 3000 Win Speed 3006 Cogmind --------- Core Integrity 7004/16350 Matter 3413/4100 Energy 15820/15820 System Corruption 35% Temperature Cool (0) Movement Flying (15) Location 0bPrime Parts ------- > --- POWER (1) -------- Concept Zero-point Core > --- PROPULSION (6) --- Experimental Biomechanical Wings Experimental Biomechanical Wings Experimental Biomechanical Wings Experimental Surge Thruster Experimental Surge Thruster Concept Fieldthrust Drive > --- UTILITY (13) ----- Concept Thermoelectric Network Concept Dimensional Manipulator Experimental Active Sensor Suite Concept Projectile Intercept Suite Experimental Launcher Guidance Computer Concept Weapon Articulator Concept Cloak Mesh Centrium Medium Armor Plating Concept RG22 Armor Experimental EM Disruption Field Experimental Remote Shield Advanced Component Analysis Suite > --- WEAPON (6) ------- Concept Heavy Railcannon Concept Heavy Railcannon Concept Rapid Grenade Launcher Concept Arcsight Missile Launcher > --- INVENTORY (145) -- Flight Unit Flight Unit VTOL Module Cesium-ion Thruster Transdimensional Reconstructor Concept Nanofilaments [Conductive] Concept Lightning Penetrator Faulty Concept Variable Chargecaster Concept Variable Chargecaster Concept Plasma Driver Light Assault Rifle Light Assault Rifle Light Assault Rifle Concept XC Strikerail Concept XC Strikerail Concept Helical Railcannon UFD Drillbomb UFD Drillbomb UFD Drillbomb UFD Drillbomb Peak State ------------ > --- POWER ------------ Concept Zero-point Core > --- PROPULSION ------- Experimental Biomechanical Wings Experimental Biomechanical Wings Experimental Biomechanical Wings Experimental Surge Thruster Experimental Surge Thruster Concept Fieldthrust Drive > --- UTILITY ---------- Concept Thermoelectric Network Concept Dimensional Manipulator Experimental Active Sensor Suite Concept Projectile Intercept Suite Experimental Launcher Guidance Computer Concept Weapon Articulator Concept Cloak Mesh Centrium Medium Armor Plating Concept RG22 Armor Experimental EM Disruption Field Experimental Remote Shield Advanced Component Analysis Suite > --- WEAPON ----------- Concept Heavy Railcannon Concept Heavy Railcannon Concept Rapid Grenade Launcher Concept Arcsight Missile Launcher > --- INVENTORY -------- Flight Unit Flight Unit VTOL Module Cesium-ion Thruster Transdimensional Reconstructor Concept Nanofilaments [Conductive] Concept Lightning Penetrator Concept Variable Chargecaster Concept Variable Chargecaster Concept Plasma Driver Light Assault Rifle Light Assault Rifle Light Assault Rifle Concept XC Strikerail Concept XC Strikerail Concept Helical Railcannon UFD Drillbomb UFD Drillbomb UFD Drillbomb UFD Drillbomb UFD Drillbomb UFD Drillbomb UFD Drillbomb UFD Drillbomb UFD Drillbomb UFD Drillbomb [Rating: 421] Favorites ----------- Power Ion Engine Engine Ion Engine Power Core Concept Zero-point Core Propulsion Cesium-ion Thruster Wheel Wheel Flight Unit Cesium-ion Thruster Utility Improved Signal Interpreter Device Advanced Component Analysis Suite Processor Improved Signal Interpreter Protection Reactive Plating Weapon Antimatter Cannon Energy Gun Concept Lightning Penetrator Ballistic Gun Concept XC Strikerail Ballistic Cannon Antimatter Cannon Launcher Concept Arcsight Missile Launcher Build | -11 -10 -9 -8 -8 -8 -8 -6 -5 -4 -3 -2 -2 -2 ------- Run | Yrd Mat Mat Mat Sto Rec Scr Fac Fac Fac Res Res Qua Frg Slots Evolved 22 | 22 . . . . . . . . . . . . . Power . | . . . . . . . . . . . . . . Propulsion 5 | 5 . . . . . . . . . . . . . Utility 12 | 12 . . . . . . . . . . . . . Weapon 5 | 5 . . . . . . . . . . . . . Parts Attached 90 | 7 10 7 3 1 . . 6 2 4 3 . . 47 Power 2 | 1 . . . . . . . . . . . . 1 Engine 1 | 1 . . . . . . . . . . . . . Core 1 | . . . . . . . . . . . . . 1 Reactor . | . . . . . . . . . . . . . . Propulsion 25 | 1 3 5 . 1 . . 1 2 . . . . 12 Treads . | . . . . . . . . . . . . . . Leg . | . . . . . . . . . . . . . . Wheel 1 | 1 . . . . . . . . . . . . . Hover . | . . . . . . . . . . . . . . Flight 24 | . 3 5 . 1 . . 1 2 . . . . 12 Utility 31 | 2 . 2 2 . . . 1 . 3 3 . . 18 Device 22 | 2 . 1 1 . . . 1 . 2 2 . . 13 Storage . | . . . . . . . . . . . . . . Processor 4 | . . . 1 . . . . . 1 . . . 2 Hackware . | . . . . . . . . . . . . . . Protection 5 | . . 1 . . . . . . . 1 . . 3 Artifact . | . . . . . . . . . . . . . . Weapon 32 | 3 7 . 1 . . . 4 . 1 . . . 16 Energy Gun 2 | 1 . . . . . . . . . . . . 1 Energy Cannon . | . . . . . . . . . . . . . . Ballistic Gun 15 | 2 6 . . . . . . . . . . . 7 Ballistic Cannon 12 | . 1 . 1 . . . 4 . 1 . . . 5 Launcher 3 | . . . . . . . . . . . . . 3 Special Weapon . | . . . . . . . . . . . . . . Impact Weapon . | . . . . . . . . . . . . . . Slashing Weapon . | . . . . . . . . . . . . . . Piercing Weapon . | . . . . . . . . . . . . . . Special Melee Weapon . | . . . . . . . . . . . . . . Unidentified Prototypes 35 | . . . . 1 . . 1 1 . . . . 32 Parts Lost 18 | . . . . . . . . . . . . . 18 Power 1 | . . . . . . . . . . . . . 1 Propulsion 3 | . . . . . . . . . . . . . 3 Utility 9 | . . . . . . . . . . . . . 9 Weapon 5 | . . . . . . . . . . . . . 5 Highest Loss Streak 5 | . . . . . . . . . . . . . 5 To Critical Strikes 3 | . . . . . . . . . . . . . 3 Average Backups 10 | . . 4 6 7 7 7 7 8 11 12 12 12 12 Power . | . . . . . . . . . . . . . . Propulsion 3 | . . . 2 2 2 2 2 3 6 6 6 6 4 Utility . | . . . . . . . . . . . . . . Weapon 5 | . . 4 4 5 5 5 5 5 5 6 6 6 6 Tool/Special . | . . . . . . . . . . . . . . Unused Backups 14 | . . . . . . . . . . . . . 14 Power . | . . . . . . . . . . . . . . Propulsion . | . . . . . . . . . . . . . . Utility . | . . . . . . . . . . . . . . Weapon 12 | . . . . . . . . . . . . . 12 Tool/Special 2 | . . . . . . . . . . . . . 2 Average Slot Usage (%) 71 | . 33 54 71 73 73 73 73 73 74 89 94 92 69 Engine 1 | . 3 3 3 3 3 3 3 3 3 3 3 3 . Flight 19 | . 5 16 23 23 23 23 23 23 23 23 23 23 17 Device 20 | . 7 8 14 15 15 15 15 15 15 26 30 30 21 Processor 5 | . . . 2 3 3 3 3 3 4 7 7 7 6 Protection 2 | . . 1 3 3 3 3 3 3 3 4 6 3 2 Ballistic Gun 5 | . 9 15 15 15 15 15 4 . . . . . 5 Ballistic Cannon 10 | . 1 3 5 7 7 7 18 23 23 23 22 23 7 Launcher 1 | . . . . . . . . . . . . . 2 Peak Build Rating 421 | 9 18 36 44 48 48 48 68 77 100 120 120 117 421 Average Rating 141 | 4 11 25 43 45 48 48 63 71 83 110 117 117 191 On Entrance 60 | . 9 18 36 44 48 48 48 68 77 100 120 117 117 Naked Turns . | . . . . . . . . . . . . . . Heaviest Build 106 | 12 24 36 41 41 41 41 61 61 80 97 97 87 106 Greatest Support 509 | 445 447 463 463 464 464 464 466 469 469 469 469 469 509 Greatest Overweight (x) . | . . . . . . . . . . . . . . Average Overweight (x) . | . . . . . . . . . . . . . . Largest Inventory Capacity 145 | 145 145 145 145 145 145 145 145 145 145 145 145 145 145 Average Capacity 144 | 138 145 145 145 145 145 145 145 145 145 145 145 145 145 Most Carried 116 | . 4 6 7 7 7 7 8 13 14 14 14 14 116 Average Carried 15 | . . 4 6 7 7 7 7 9 13 14 14 14 19 Final Capacity 145 | 145 145 145 145 145 145 145 145 145 145 145 145 145 145 Final Carried 56 | . 4 6 7 7 7 7 8 13 14 14 14 14 56 Class Distribution -------------------- 89% | Wizard-Scout 4% | Wizard-Gunner 4% | Wizard-Sprinter Dominant Class ---------------- Wizard-Gunner | -10/Materials Wizard-Scout | -9/Materials Wizard-Scout | -8/Materials Wizard-Scout | -8/Storage Wizard-Scout | -8/Recycling Wizard-Scout | -8/Scraptown Wizard-Scout | -6/Factory Wizard-Scout | -5/Factory Wizard-Scout | -4/Factory Wizard-Scout | -3/Research Wizard-Scout | -2/Research Wizard-Scout | -2/Quarantine Wizard-Scout | -2/Protoforge Resources | -11 -10 -9 -8 -8 -8 -8 -6 -5 -4 -3 -2 -2 -2 ----------- Run | Yrd Mat Mat Mat Sto Rec Scr Fac Fac Fac Res Res Qua Frg Matter Collected 4137 | 160 364 . 515 314 . . -6650 114 352 67 188 . 8713 Remotely 1093 | . . . . . . . . . . . . . 1093 Salvage Created 6825 | 111 28 . 410 156 . . 439 422 198 146 182 172 4561 Parts 247 | 9 5 . 34 7 . . 18 17 1 2 8 4 142 Haulers Intercepted 1 | . . . . . . . . 1 . . . . . Recyclers Shooed 2 | 1 . . . . . . 1 . . . . . . Parts Field Recycled . | . . . . . . . . . . . . . . Retrieved Matter . | . . . . . . . . . . . . . . Parts Self-Destructed . | . . . . . . . . . . . . . . Prevented . | . . . . . . . . . . . . . . Kills | -11 -10 -9 -8 -8 -8 -8 -6 -5 -4 -3 -2 -2 -2 ------- Run | Yrd Mat Mat Mat Sto Rec Scr Fac Fac Fac Res Res Qua Frg Combat Hostiles Destroyed 177 | . 2 . 10 2 . . 18 13 7 3 7 3 112 Guns 46 | . 2 . 8 1 . . . . . . . . 35 Cannons 98 | . . . 2 1 . . 18 13 7 3 7 3 44 AOE 29 | . . . . . . . . . . . . . 29 Classes Destroyed 26 | 2 1 . 6 . . . 4 2 1 . 1 . 9 Worker 4 | . . . . . . . 2 . . . . . 2 Builder 7 | . . . 1 . . . 1 . . . 3 . 2 Tunneler 4 | 3 . . 1 . . . . . . . . . . Hauler 1 | . . . . . . . . 1 . . . . . Recycler 5 | 1 . . . . . . 2 1 . . 1 . . Mechanic 1 | . . . . . . . . . . . . . 1 Operator 5 | . . . 1 . . . . 1 . 1 . 1 1 Drone 13 | . . . . . . . . . . . . . 13 Watcher 2 | . . . 1 . . . 1 . . . . . . Swarmer 11 | . 2 . . . . . 4 . . . . . 5 Cutter 4 | . . . . . . . . . . . 4 . . Grunt 41 | . . . 6 . . . 9 9 2 1 . 2 12 Brawler 6 | . . . 1 . . . . . 1 . . . 4 Duelist 4 | . . . . . . . . 1 . . . 1 2 Protector 2 | . . . . . . . . . . . . . 2 Researcher 2 | . . . . . . . . . . . . . 2 Sentry 24 | . . . 3 2 . . 1 3 1 1 1 . 12 Specialist 4 | . . . . . . . . . . . . . 4 Hunter 11 | . . . . . . . 2 . 2 . . . 7 Programmer 6 | . . . . . . . 1 . . 1 . . 4 Heavy 2 | . . . . . . . . . 1 . 1 . . Behemoth 2 | . . . . . . . 1 . . . 1 . . Hotshot 12 | . . . . . . . . . . . . . 12 Decapitator 9 | . . . . . . . . . . . . . 9 Immortal 2 | . . . . . . . . . . . . . 2 Striker 5 | . . . . . . . . . . . . . 5 Executioner 7 | . . . . . . . . . . . . . 7 Alpha 7 4 | . . . . . . . . . . . . . 4 V-Series 7 | . . . . . . . . . . . . . 7 Best Kill Streak 27 | 2 2 . 14 2 . . 19 12 4 2 9 3 27 Combat Bots Only 21 | . 2 . 7 2 . . 12 10 4 2 5 3 21 Max Kills in Single Turn 4 | 1 1 . 1 1 . . 2 2 1 1 2 1 4 Gunslinging 1 | . . . . . . . . . . . . . 1 Exploded 4 | . . . . . . . . . . . . . 4 Melee . | . . . . . . . . . . . . . . Uniques/NPCs Destroyed 1 | . . . . . . . . . . . . . 1 Superfortress (-2/Protoforge) Combat | -11 -10 -9 -8 -8 -8 -8 -6 -5 -4 -3 -2 -2 -2 -------- Run | Yrd Mat Mat Mat Sto Rec Scr Fac Fac Fac Res Res Qua Frg Hostile Shots Fired 1867 | . 4 16 19 4 . 2 178 30 24 10 41 14 1525 Missed 821 | . 1 8 6 1 . 2 75 17 8 8 17 6 672 Hits 1046 | . 3 8 13 3 . . 103 13 16 2 24 8 853 Melee 25 | . . . 1 . . . . . . . 6 . 18 Projectile 1021 | . 3 8 12 3 . . 103 13 16 2 18 8 835 AOE 4 | . . . . . . . . . . . . . 4 Critical Strikes 102 | . . . 1 1 . . 1 1 1 . 3 1 93 Actively Blocked 1 | . . . . . . . . . . . . . 1 Part Disruptions 2 | . . . . . . . . . . . . . 2 Damage Taken 12377 | . 8 24 85 21 . . 748 448 171 12 294 33 10533 Core 9346 | . 6 15 58 13 . . 548 366 133 7 174 19 8007 Absorbed by Shields 2918 | . . . . . . . . . 52 14 302 36 2514 Redirected to Core 8012 | . 4 15 44 13 . . 495 286 125 7 155 19 6849 Redirected to Shielding 103 | . . . . . . . . . . . . . 103 Ignored by Resistances 16403 | . 13 37 113 27 . . 982 148 286 23 667 91 14016 Regen/Repaired (Parts) 126 | . . . . . . . . . . . . . 126 Core Remaining (%) 88 | 100 99 99 . . . 99 93 89 88 88 . . 42 Volleys Fired 359 | 7 2 . 21 4 . . 36 18 12 6 17 5 231 Largest 6 | 3 3 . 6 6 . . 6 6 6 6 6 6 6 Hottest 320 | 90 90 . 172 159 . . 199 199 213 213 213 213 320 Shots Fired 1712 | 21 6 . 126 24 . . 216 108 70 36 94 30 981 Gun 583 | 21 6 . 86 16 . . 36 . . . . . 418 Cannon 1076 | . . . 40 8 . . 180 108 70 36 94 30 510 Launcher 53 | . . . . . . . . . . . . . 53 Special . | . . . . . . . . . . . . . . Kinetic 1564 | 14 4 . 124 24 . . 216 108 70 36 94 30 844 Thermal 21 | 7 2 . 2 . . . . . . . . . 10 Explosive 53 | . . . . . . . . . . . . . 53 Electromagnetic 74 | . . . . . . . . . . . . . 74 Robot Hit Streak 83 | 16 20 . 42 9 . . 70 48 52 23 20 39 83 Robot Miss Streak 2 | . . . 2 . . . 2 1 1 . 1 . 2 Penetration Max 2 | . . . . . . . . . . . . . 2 Secondary Targets 4 | . . . . . . . . . . . . . 4 Max Gunslinging Chain 1 | . . . . . . . . . . . . . 1 Shots Hit Robots 1127 | 16 4 . 69 8 . . 102 49 49 16 59 19 736 Core Hits 530 | 5 2 . 27 3 . . 64 52 17 6 21 11 322 Critical Kills 7 | . . . . . . . . . . . . . 7 Critical Parts Destroyed 21 | . . . . . . . 1 . . . . . 20 Critical Strikes 79 | 2 1 . . . . . 4 1 3 2 1 2 63 Burn 3 | 2 1 . . . . . . . . . . . . Destroy 33 | . . . . . . . 1 . . . . . 32 Blast 43 | . . . . . . . 3 1 3 2 1 2 31 Melee Attacks . | . . . . . . . . . . . . . . Impact . | . . . . . . . . . . . . . . Slashing . | . . . . . . . . . . . . . . Piercing . | . . . . . . . . . . . . . . Sneak Attacks . | . . . . . . . . . . . . . . Combat Hostiles . | . . . . . . . . . . . . . . Follow-up Attacks . | . . . . . . . . . . . . . . Damage Inflicted 50752 | 202 54 . 1226 146 . . 4090 2233 1711 642 2702 743 37003 Guns 13777 | 202 54 . 952 128 . . 82 . . . . . 12359 Cannons 28401 | . . . 274 18 . . 4008 2233 1711 642 2702 743 16070 Explosions 8574 | . . . . . . . . . . . . . 8574 Melee . | . . . . . . . . . . . . . . Ramming . | . . . . . . . . . . . . . . Kinetic 39804 | 99 25 . 1211 146 . . 4090 2233 1711 642 2702 743 26202 Thermal 458 | 103 29 . 15 . . . . . . . . . 311 Explosive 8348 | . . . . . . . . . . . . . 8348 Electromagnetic 2142 | . . . . . . . . . . . . . 2142 Impact . | . . . . . . . . . . . . . . Slashing . | . . . . . . . . . . . . . . Piercing . | . . . . . . . . . . . . . . Highest Corruption 35 | . . . . . . . . . . . . . 35 Average Corruption 22 | . . . . . . . . . . . . . 22 Corruption Purged . | . . . . . . . . . . . . . . Corruption Blocked . | . . . . . . . . . . . . . . Effects 158 | . . . . . . . . . . . . . 158 Message Errors 17 | . . . . . . . . . . . . . 17 Matter Fused 19 | . . . . . . . . . . . . . 19 Heat Flow Errors 8 | . . . . . . . . . . . . . 8 Energy Discharges 11 | . . . . . . . . . . . . . 11 Parts Rejected 4 | . . . . . . . . . . . . . 4 Data Loss (minor) 12 | . . . . . . . . . . . . . 12 Data Loss (major) 7 | . . . . . . . . . . . . . 7 Alerts 3 | . . . . . . . . . . . . . 3 Misdirections 55 | . . . . . . . . . . . . . 55 Weapon Failures 22 | . . . . . . . . . . . . . 22 Overload Shots . | . . . . . . . . . . . . . . Overflow Damage 787 | . . . 13 . . . 104 . . 28 75 . 567 Projectiles 546 | . . . 13 . . . 104 . . 28 75 . 326 Explosions 241 | . . . . . . . . . . . . . 241 Melee . | . . . . . . . . . . . . . . Knockbacks 145 | . . . 1 . . . 41 9 2 1 7 5 79 Impact . | . . . . . . . . . . . . . . Kinetic 137 | . . . 1 . . . 35 9 2 1 7 5 77 Secondary 8 | . . . . . . . 6 . . . . . 2 Self-Inflicted Damage 583 | . . . . . . . . . . . . . 583 Shots 20 | . . . . . . . . . . . . . 20 Rammed . | . . . . . . . . . . . . . . Targets Rammed . | . . . . . . . . . . . . . . Kicked . | . . . . . . . . . . . . . . Crushed . | . . . . . . . . . . . . . . Highest Temperature . | . . . . . . . . . . . . . . Average Temperature . | . . . . . . . . . . . . . . Received Heat Transfer 3463 | . . . 108 9 . . 405 117 75 . 44 28 2677 Siege Activations . | . . . . . . . . . . . . . . Martial Activations . | . . . . . . . . . . . . . . Shielding Activations . | . . . . . . . . . . . . . . Robots Disrupted 1 | . . . . . . . . . . . . . 1 Combat Hostiles . | . . . . . . . . . . . . . . Robots Corrupted 2 | . . . . . . . 1 . . . . . 1 Combat Hostiles 1 | . . . . . . . . . . . . . 1 Parts Fried 8 | . . . . . . . 1 . . . . . 7 Impact Corruptions 2 | . . . . . . . 2 . . . . . . Robots Melted . | . . . . . . . . . . . . . . Combat Hostiles . | . . . . . . . . . . . . . . Parts Melted 1 | 1 . . . . . . . . . . . . . Heat Transferred 876 | 407 148 . 37 . . . . . . . . . 284 Parts Sabotaged . | . . . . . . . . . . . . . . Parts Stolen . | . . . . . . . . . . . . . . Parts Stripped . | . . . . . . . . . . . . . . Power Chain Reactions 1 | . . . . . . . . . . . . . 1 Alert | -11 -10 -9 -8 -8 -8 -8 -6 -5 -4 -3 -2 -2 -2 ------- Run | Yrd Mat Mat Mat Sto Rec Scr Fac Fac Fac Res Res Qua Frg Maximum Alert Level 5 | . . . 1 . . . 2 1 1 1 1 . 5 Low Security (%) 37 | 100 100 100 94 100 100 . 65 48 66 92 84 100 10 Level 1 29 | . . . 5 . . . 29 51 33 7 15 . 35 Level 2 14 | . . . . . . . 5 . . . . . 23 Level 3 2 | . . . . . . . . . . . . . 4 Level 4 9 | . . . . . . . . . . . . . 15 Level 5 6 | . . . . . . . . . . . . . 10 High Security . | . . . . . . . . . . . . . . Max Security . | . . . . . . . . . . . . . . Peak Influence 1714 | 5 35 90 218 106 25 . 474 260 307 215 240 179 1714 Initial 119 | . 2 1 26 61 25 . . . 88 119 84 101 59 Average 459 | 1 12 7 103 85 17 . 152 142 181 143 109 141 670 Influence Increases 5839 | 20 50 90 282 61 . . 654 371 294 141 261 102 3513 Destroy 0b10 Robot/C 3420 | . 40 . 200 40 . . 360 260 140 60 140 60 2120 Destroy 0b10 Robot/NC 185 | 20 . . 20 . . . 30 15 . 5 20 5 70 Destroy Leader 596 | . 10 . 52 20 . . 82 62 40 20 40 10 260 Disable Machine 208 | . . . 8 . . . 12 . . . 4 12 172 Destroy Structure 635 | . . . 2 1 . . 50 34 24 26 42 15 441 Partial Spotted 120 | . . . . . . . 30 . 45 . 15 . 30 Lose Combat Pursuer 675 | . . 90 . . . . 90 . 45 30 . . 420 Influence Decreases 4278 | 15 50 5 169 172 82 10 654 126 232 248 221 199 2095 Entered New Map 974 | . 3 4 64 142 67 10 . . 157 188 116 139 84 Time Decay 2484 | 15 47 1 105 30 15 . 180 126 75 60 105 60 1665 Lost Part 180 | . . . . . . . . . . . . . 180 Purge Threat 640 | . . . . . . . 474 . . . . . 166 Squads Dispatched 30 | . . . 1 . . . 7 5 3 1 3 . 10 Investigation 13 | . . . . . . . 6 2 1 . 1 . 3 Extermination 6 | . . . . . . . 1 1 . 1 1 . 2 Reinforcement 10 | . . . 1 . . . . 1 2 . 1 . 5 Assault . | . . . . . . . . . . . . . . Garrison 1 | . . . . . . . . 1 . . . . . Intercept . | . . . . . . . . . . . . . . Searches Triggered . | . . . . . . . . . . . . . . Construction Impeded 1 | . . . . . . . . . . . . . 1 Haulers Reinforced . | . . . . . . . . . . . . . . Active Scanning Responses . | . . . . . . . . . . . . . . Cargo Convoy Interrupts . | . . . . . . . . . . . . . . Stealth | -11 -10 -9 -8 -8 -8 -8 -6 -5 -4 -3 -2 -2 -2 --------- Run | Yrd Mat Mat Mat Sto Rec Scr Fac Fac Fac Res Res Qua Frg Distress Signals 14 | . . . 1 1 . . 3 . . 1 . . 8 Communications Jammed 34 | . . . . . . . . . . 5 5 . 24 Distress Signals 30 | . . . . . . . . . . 5 1 . 24 Times Spotted 354 | . 3 12 13 3 . 4 28 17 7 7 12 6 242 Peak Tracking Total 18 | . 2 13 4 3 . 4 13 6 7 6 7 2 18 Tactical Retreats 17 | . . 1 . . . . 2 . 1 1 . . 12 Traps | -11 -10 -9 -8 -8 -8 -8 -6 -5 -4 -3 -2 -2 -2 ------- Run | Yrd Mat Mat Mat Sto Rec Scr Fac Fac Fac Res Res Qua Frg Traps Triggered 12 | . . . . . . . . . . . . . 12 Indirectly . | . . . . . . . . . . . . . . Trap Hack Attempts . | . . . . . . . . . . . . . . Triggered . | . . . . . . . . . . . . . . Disarmed 10 | . . . . . . . . . . . . . 10 Reprogrammed . | . . . . . . . . . . . . . . Reused . | . . . . . . . . . . . . . . Traps Extracted . | . . . . . . . . . . . . . . Installed . | . . . . . . . . . . . . . . Triggered . | . . . . . . . . . . . . . . Machines | -11 -10 -9 -8 -8 -8 -8 -6 -5 -4 -3 -2 -2 -2 ---------- Run | Yrd Mat Mat Mat Sto Rec Scr Fac Fac Fac Res Res Qua Frg Machines Disabled 73 | . . . 2 . . . 3 . . . 1 3 64 Max in Single Turn 5 | . . . 1 . . . 3 . . . 1 1 5 Garrison Access 2 | . . . . . . . . 1 . . . . 1 Machines Repaired . | . . . . . . . . . . . . . . Machines Dismantled . | . . . . . . . . . . . . . . Machines Sabotaged . | . . . . . . . . . . . . . . Overloaded Fab Kills . | . . . . . . . . . . . . . . Hacking | -11 -10 -9 -8 -8 -8 -8 -6 -5 -4 -3 -2 -2 -2 --------- Run | Yrd Mat Mat Mat Sto Rec Scr Fac Fac Fac Res Res Qua Frg Machines Accessed 35 | . . 1 1 3 . 1 8 4 2 1 2 1 11 Terminals 19 | . . 1 1 3 . . 2 1 1 1 1 1 7 Fabricators . | . . . . . . . . . . . . . . Repair Stations . | . . . . . . . . . . . . . . Recycling Units 13 | . . . . . . . 6 2 1 . 1 . 3 Scanalyzers . | . . . . . . . . . . . . . . Garrison Access 2 | . . . . . . . . 1 . . . . 1 Total Hacks 84 | . . 2 1 3 . 16 14 4 3 2 2 1 36 Successful 84 | . . 2 1 3 . 16 14 4 3 2 2 1 36 Failed . | . . . . . . . . . . . . . . Catastrophic . | . . . . . . . . . . . . . . Database Lockouts . | . . . . . . . . . . . . . . Manual 35 | . . 2 1 2 . . 11 3 3 2 2 1 8 Terminals 53 | . . 2 1 3 . . 8 1 2 2 1 1 32 Fabricators . | . . . . . . . . . . . . . . Repair Stations . | . . . . . . . . . . . . . . Recycling Units 13 | . . . . . . . 6 2 1 . 1 . 3 Scanalyzers . | . . . . . . . . . . . . . . Garrison Access 2 | . . . . . . . . 1 . . . . 1 Terminal Hacks 69 | . . 2 1 3 . 16 8 1 2 2 1 1 32 Record 25 | . . . . . . 16 3 . . . . . 6 Part Schematic 4 | . . . . . . . . . . . . . 4 Robot Analysis 2 | . . . . . . . . . . . . . 2 Prototype ID Bank 3 | . . . . . . . . . . . . . 3 Open Door 2 | . . . . 2 . . . . . . . . . Level Access Points 4 | . . 1 . . . . . 1 1 1 . . . Branch Access Points 8 | . . 1 1 1 . . . . 1 1 1 1 1 Repair Station Index 1 | . . . . . . . . . . . . . 1 Alert Level 1 | . . . . . . . . . . . . . 1 Unreport Threat 8 | . . . . . . . 5 . . . . . 3 Locate Traps 3 | . . . . . . . . . . . . . 3 Disarm Traps 2 | . . . . . . . . . . . . . 2 Maintenance Status 1 | . . . . . . . . . . . . . 1 Security Status 1 | . . . . . . . . . . . . . 1 Recall Reinforcements 1 | . . . . . . . . . . . . . 1 Registered Components 1 | . . . . . . . . . . . . . 1 Zone Layout 2 | . . . . . . . . . . . . . 2 Fabricator Hacks . | . . . . . . . . . . . . . . Repair Station Hacks . | . . . . . . . . . . . . . . Recycling Unit Hacks . | . . . . . . . . . . . . . . Scanalyzer . | . . . . . . . . . . . . . . Garrison Access Hacks 2 | . . . . . . . . 1 . . . . 1 Seal Access 2 | . . . . . . . . 1 . . . . 1 Unauthorized Hacks 13 | . . . . . . . 6 2 1 . 1 . 3 Terminals . | . . . . . . . . . . . . . . Fabricators . | . . . . . . . . . . . . . . Repair Stations . | . . . . . . . . . . . . . . Recycling Units 13 | . . . . . . . 6 2 1 . 1 . 3 Fedlink 13 | . . . . . . . 6 2 1 . 1 . 3 Scanalyzers . | . . . . . . . . . . . . . . Garrison Access . | . . . . . . . . . . . . . . Data Cores Recovered 1 | . . . 1 . . . . . . . . . . Used . | . . . . . . . . . . . . . . Hacking Detections 5 | . . . . . . . 1 . 1 . . . 3 Full Trace Events . | . . . . . . . . . . . . . . Feedback Events . | . . . . . . . . . . . . . . Feedback Blocked . | . . . . . . . . . . . . . . Robot Schematics Acquired . | . . . . . . . . . . . . . . Robots Built . | . . . . . . . . . . . . . . Authchips . | . . . . . . . . . . . . . . Time . | . . . . . . . . . . . . . . Total Robot Build Rating . | . . . . . . . . . . . . . . Part Schematics Acquired 4 | . . . . . . . . . . . . . 4 Parts Built . | . . . . . . . . . . . . . . Authchips . | . . . . . . . . . . . . . . Time . | . . . . . . . . . . . . . . Total Part Build Rating . | . . . . . . . . . . . . . . Parts Repaired . | . . . . . . . . . . . . . . Time . | . . . . . . . . . . . . . . Parts Recycled . | . . . . . . . . . . . . . . Recycled Matter . | . . . . . . . . . . . . . . Retrieved Matter . | . . . . . . . . . . . . . . Retrieved Components . | . . . . . . . . . . . . . . Parts Scanalyzed . | . . . . . . . . . . . . . . Part Schematics Acquired . | . . . . . . . . . . . . . . Parts Damaged . | . . . . . . . . . . . . . . Bothacking | -11 -10 -9 -8 -8 -8 -8 -6 -5 -4 -3 -2 -2 -2 ------------ Run | Yrd Mat Mat Mat Sto Rec Scr Fac Fac Fac Res Res Qua Frg Used RIF Installer . | . . . . . . . . . . . . . . Robots Hacked . | . . . . . . . . . . . . . . Non-combat . | . . . . . . . . . . . . . . Combat . | . . . . . . . . . . . . . . Robot Hacks Applied . | . . . . . . . . . . . . . . Relay Couplers Released . | . . . . . . . . . . . . . . Fabnet Peak Effective % . | . . . . . . . . . . . . . . Robots Rewired . | . . . . . . . . . . . . . . Allies Hacked . | . . . . . . . . . . . . . . Hacks Repelled . | . . . . . . . . . . . . . . Allies | -11 -10 -9 -8 -8 -8 -8 -6 -5 -4 -3 -2 -2 -2 -------- Run | Yrd Mat Mat Mat Sto Rec Scr Fac Fac Fac Res Res Qua Frg Total Allies . | . . . . . . . . . . . . . . Largest Group . | . . . . . . . . . . . . . . Highest-Rated Group . | . . . . . . . . . . . . . . Highest-Rated Ally . | . . . . . . . . . . . . . . Total Orders . | . . . . . . . . . . . . . . Ally Attacks . | . . . . . . . . . . . . . . Total Damage . | . . . . . . . . . . . . . . Kills . | . . . . . . . . . . . . . . Allies Corrupted . | . . . . . . . . . . . . . . Allies Melted 2 | . . . . . . . . . . . . . 2 Intel | -11 -10 -9 -8 -8 -8 -8 -6 -5 -4 -3 -2 -2 -2 ------- Run | Yrd Mat Mat Mat Sto Rec Scr Fac Fac Fac Res Res Qua Frg Active Infowar (turns) 3119 | 32 95 72 140 52 36 121 295 180 106 84 152 93 1661 Sensors 1743 | . . . 132 52 36 121 295 180 106 84 152 93 492 A.S.S. 627 | . . . . . . . . . . . . . 627 Terrain 1853 | 7 95 72 140 52 36 121 295 180 106 84 152 93 420 Traps 1650 | . . 27 140 52 36 121 295 180 106 84 152 93 364 Seismic 1808 | 32 95 72 140 52 36 121 295 180 106 84 152 93 350 Cloaking 461 | . . . . . . . . . . . . . 461 Jamming 1331 | . . . . . . . . . . 52 152 93 1034 Robot Analysis Total 2 | . . . . . . . . . . . . . 2 Derelict Logs Recovered . | . . . . . . . . . . . . . . Drone Launches . | . . . . . . . . . . . . . . Drone Recoveries . | . . . . . . . . . . . . . . Exploration | -11 -10 -9 -8 -8 -8 -8 -6 -5 -4 -3 -2 -2 -2 ------------- Run | Yrd Mat Mat Mat Sto Rec Scr Fac Fac Fac Res Res Qua Frg Turns Passed 3745 | 66 95 72 140 52 36 121 295 180 106 84 152 93 2253 Spaces Moved 8046 | 41 147 235 249 168 176 570 645 496 231 250 381 330 4127 Core 41 | 40 . . . . . . . . . . . . 1 Treads . | . . . . . . . . . . . . . . Legs . | . . . . . . . . . . . . . . Wheels 51 | 1 50 . . . . . . . . . . . . Hover . | . . . . . . . . . . . . . . Flight 7954 | . 97 235 249 168 176 570 645 496 231 250 381 330 4126 Fastest Speed 15 | 50 34 20 20 20 20 20 20 20 22 22 22 22 15 Average Speed 22 | 50 50 25 20 20 20 20 20 20 22 22 22 22 21 Slowest Speed 80 | 80 80 34 20 20 20 20 20 22 22 22 22 22 50 Overloaded Moves . | . . . . . . . . . . . . . . Propulsion Burnouts . | . . . . . . . . . . . . . . Robots Hopped 114 | . 2 13 2 1 2 . 19 4 4 3 17 6 41 Potential Cave-ins 36 | . . . . . . . . 2 2 . . . 32 Cave-ins Triggered 3 | . . . . . . . . 1 . . . . 2 Teleports 49 | . . . . . . . . . . . . . 49 Exploration Rate (%) 31 | 4 19 31 36 34 39 59 29 18 11 12 16 48 87 Regions Visited 13 Branch Regions 5 Pre-discovered Areas 1 | . . . . . . . 1 . . . . . . Known Exits Taken 13 | 1 1 1 1 1 1 1 1 1 1 1 1 1 . Unknown Exits Taken . | . . . . . . . . . . . . . . Scrap Searched . | . . . . . . . . . . . . . . Spaces Dug 31 | . . . . 1 . . 4 3 5 4 7 . 7 Terrain Destroyed 470 | . . . . 1 . . 67 17 17 15 23 4 326 Melee . | . . . . . . . . . . . . . . Projectile 239 | . . . . 1 . . 34 17 17 15 23 4 128 AOE 231 | . . . . . . . 33 . . . . . 198 Terrain Rammed . | . . . . . . . . . . . . . . Walls Destroyed . | . . . . . . . . . . . . . . Machines Disabled . | . . . . . . . . . . . . . . Actions | -11 -10 -9 -8 -8 -8 -8 -6 -5 -4 -3 -2 -2 -2 --------- Run | Yrd Mat Mat Mat Sto Rec Scr Fac Fac Fac Res Res Qua Frg Total 8907 | 68 157 228 271 172 173 576 682 514 243 255 381 328 4859 Wait 386 | 14 . . . . . 7 8 . . . . . 357 Move 7822 | 40 142 208 244 165 171 569 611 486 222 243 348 318 4055 Hop 96 | . 2 13 2 1 2 . 14 4 4 3 15 5 31 Pick Up 28 | . . . . . . . . 2 . . . . 26 Fast Attach 82 | 7 6 5 2 1 . . 6 1 3 3 1 . 47 Attach 9 | . . . . . . . . . . . . . 9 Detach 2 | . . . . . . . . . . . . . 2 Swap 12 | . 4 2 2 . . . 1 1 2 . . . . Drop 44 | . 1 . . 1 . . 6 1 . . . . 35 Fire 359 | 7 2 . 21 4 . . 36 18 12 6 17 5 231 Melee . | . . . . . . . . . . . . . . Ram . | . . . . . . . . . . . . . . Kick . | . . . . . . . . . . . . . . Crush . | . . . . . . . . . . . . . . Escape Stasis 1 | . . . . . . . . 1 . . . . . Rewire . | . . . . . . . . . . . . . . Trap . | . . . . . . . . . . . . . . Miscellaneous 66 | . . . . . . . . . . . . . 66 Route ------- -11/Scrapyard -10/Materials (discovered 2 exits: *Mat / Min) -9/Materials (discovered 4 exits: *Mat x3 / Min) -8/Materials (discovered 2 exits: *Sto x2) -8/Storage -8/Recycling -8/Scraptown (discovered 2 exits: *Fac x2) -6/Factory -5/Factory (discovered 4 exits: *Fac x4) -4/Factory (discovered 9 exits: *Res x4 / Upp x2 / Ext x2 / Arm) -3/Research (discovered 5 exits: *Res x3 / Tes x2) -2/Research (discovered 2 exits: *Qua x2) -2/Quarantine (discovered 3 exits: Acc / *Sec / *Frg) -2/Protoforge 0bPrime History --------- Turn | Location | Event 4 | -11/Scrapyard | Upgraded with Propulsion slot (x5) 4 | -11/Scrapyard | Upgraded with Utility slot (x12) 4 | -11/Scrapyard | Upgraded with Weapon slot (x5) 7 | -11/Scrapyard | Identified exit to Materials 7 | -11/Scrapyard | Discovered exit to Materials (range 20) 67 | -11/Scrapyard | Entered Materials 85 | -10/Materials | Identified exit to Mines 85 | -10/Materials | Discovered exit to Mines (range 16) 146 | -10/Materials | Identified exit to Materials 146 | -10/Materials | Discovered exit to Materials (range 15) 162 | -10/Materials | Entered another Materials area 164 | -9/Materials | Reached level 2 164 | -9/Materials | Reached level 3 164 | -9/Materials | Identified exit to Mines 165 | -9/Materials | Identified exit to Materials 234 | -9/Materials | Entered another Materials area 236 | -8/Materials | Reached level 4 236 | -8/Materials | Reached level 5 236 | -8/Materials | Reached level 6 258 | -8/Materials | Identified exit to Storage 342 | -8/Materials | Reached level 7 374 | -8/Materials | Entered Storage 384 | -8/Storage | Identified exit to Recycling 387 | -8/Storage | Destroyed 7 combat bots 399 | -8/Storage | Reached level 8 425 | -8/Storage | Used back door to open Recycling access 426 | -8/Storage | Entered Recycling 430 | -8/Recycling | Build established: Wizard-Scout 453 | -8/Recycling | Identified exit to Scraptown 453 | -8/Recycling | Discovered exit to Scraptown (range 16) 456 | -8/Recycling | Scanned before Scraplab entrance 459 | -8/Recycling | Entered Scraplab 462 | -8/Recycling | Entered Scraptown 464 | -8/Scraptown | Reached level 9 483 | -8/Scraptown | Visited UFD Registry 484 | -8/Scraptown | Registered with UFD as "Bioform" 489 | -8/Scraptown | Visited Observation Area 498 | -8/Scraptown | Identified exit to Factory 498 | -8/Scraptown | Discovered exit to Factory (range 15) 546 | -8/Scraptown | Met Optimus 546 | -8/Scraptown | Accepted into 0bPrime 558 | -8/Scraptown | Discovered exit to Factory (range 14) 579 | -8/Scraptown | Civil war broke out across Scraptown 583 | -8/Scraptown | Entered Factory 585 | -6/Factory | Reached level 10 585 | -6/Factory | Reached level 11 585 | -6/Factory | Reached level 12 649 | -6/Factory | Spotted B-75 Beast 680 | -6/Factory | Destroyed B-75 Beast 695 | -6/Factory | Loaded intel: 8 recycling unit locations 715 | -6/Factory | Learned location of Protoforge (-2) 763 | -6/Factory | Reached level 13 826 | -6/Factory | Destroyed 12 combat bots 837 | -6/Factory | Identified exit to Factory 837 | -6/Factory | Discovered exit to Factory (range 31) 878 | -6/Factory | Entered another Factory area 880 | -5/Factory | Reached level 14 880 | -5/Factory | Reached level 15 880 | -5/Factory | Reached level 16 902 | -5/Factory | Loaded intel: 8 recycling unit locations 930 | -5/Factory | Garrison activated, responded to threat 981 | -5/Factory | Crushed by falling debris 983 | -5/Factory | Destroyed 10 combat bots 1017 | -5/Factory | Identified exit to Factory 1048 | -5/Factory | Reached level 17 1058 | -5/Factory | Entered another Factory area 1060 | -4/Factory | Reached level 18 1076 | -4/Factory | Identified exit to Upper Caves 1076 | -4/Factory | Identified exit to Extension 1076 | -4/Factory | Identified exit to Armory 1076 | -4/Factory | Identified exit to Research 1093 | -4/Factory | Reached level 19 1111 | -4/Factory | Loaded intel: 8 recycling unit locations 1116 | -4/Factory | Spotted B-86 Titan 1164 | -4/Factory | Entered Research 1166 | -3/Research | Reached level 20 1166 | -3/Research | Reached level 21 1166 | -3/Research | Reached level 22 1176 | -3/Research | Identified exit to Testing 1176 | -3/Research | Identified exit to Research 1248 | -3/Research | Entered another Research area 1250 | -2/Research | Reached level 23 1250 | -2/Research | Reached level 24 1250 | -2/Research | Reached level 25 1275 | -2/Research | Spotted B-90 Cyclops 1294 | -2/Research | Destroyed B-90 Cyclops 1299 | -2/Research | Spotted B-90 Cyclops 1302 | -2/Research | Loaded intel: 5 recycling unit locations 1348 | -2/Research | Identified exit to Quarantine 1369 | -2/Research | Reached level 26 1400 | -2/Research | Entered Quarantine 1402 | -2/Quarantine | Reached level 27 1468 | -2/Quarantine | Identified exit to Access 1468 | -2/Quarantine | Discovered exit to Access (range 14) 1474 | -2/Quarantine | Spotted Fortress 1490 | -2/Quarantine | Identified exit to Section 7 1490 | -2/Quarantine | Discovered exit to Section 7 (range 13) 1491 | -2/Quarantine | Identified exit to Protoforge 1491 | -2/Quarantine | Discovered exit to Protoforge (range 8) 1493 | -2/Quarantine | Entered Protoforge 1495 | -2/Protoforge | Reached level 28 1513 | -2/Protoforge | Spotted Hotshot 1513 | -2/Protoforge | Spotted Hotshot 1514 | -2/Protoforge | Destroyed Hotshot 1515 | -2/Protoforge | Spotted Hotshot 1518 | -2/Protoforge | Superfortress began startup sequence 1520 | -2/Protoforge | Spotted Hotshot 1526 | -2/Protoforge | Destroyed Hotshot 1538 | -2/Protoforge | Reached level 29 1538 | -2/Protoforge | Destroyed Hotshot 1550 | -2/Protoforge | Destroyed Hotshot 1595 | -2/Protoforge | Discovered exit to Access (range 15) 1599 | -2/Protoforge | Spotted Hotshot 1599 | -2/Protoforge | Spotted Hotshot 1604 | -2/Protoforge | Destroyed Hotshot 1612 | -2/Protoforge | Destroyed Hotshot 1691 | -2/Protoforge | Spotted AP7-3 1691 | -2/Protoforge | Spotted AP7-3 1704 | -2/Protoforge | Spotted EXE-6 1704 | -2/Protoforge | Spotted EXE-6 1704 | -2/Protoforge | Spotted Decapitator 1704 | -2/Protoforge | Spotted Decapitator 1706 | -2/Protoforge | Destroyed AP7-3 1723 | -2/Protoforge | Spotted Hotshot 1723 | -2/Protoforge | Spotted Hotshot 1725 | -2/Protoforge | Spotted EXE-6 1727 | -2/Protoforge | Destroyed 12 combat bots 1729 | -2/Protoforge | Destroyed EXE-6 1737 | -2/Protoforge | Destroyed EXE-6 1741 | -2/Protoforge | Spotted EXE-6 1742 | -2/Protoforge | Destroyed Hotshot 1754 | -2/Protoforge | Destroyed AP7-3 1763 | -2/Protoforge | Destroyed Hotshot 1796 | -2/Protoforge | Reached level 30 1822 | -2/Protoforge | Scanned by Researcher 1830 | -2/Protoforge | Spotted Decapitator 1840 | -2/Protoforge | Destroyed Decapitator 1840 | -2/Protoforge | Spotted Decapitator 1863 | -2/Protoforge | Spotted Hotshot 1863 | -2/Protoforge | Spotted Hotshot 1863 | -2/Protoforge | Spotted Hotshot 1873 | -2/Protoforge | Spotted Decapitator 1873 | -2/Protoforge | Spotted Decapitator 1873 | -2/Protoforge | Spotted Decapitator 1873 | -2/Protoforge | Spotted Decapitator 1879 | -2/Protoforge | Spotted Hotshot 1890 | -2/Protoforge | Lost 5 parts (3n2u) 1891 | -2/Protoforge | Spotted AP7-3 1891 | -2/Protoforge | Spotted AP7-3 1903 | -2/Protoforge | Additional patrols dispatched to research labs 1914 | -2/Protoforge | Found Prototype Device 1914 | -2/Protoforge | Identified Cep. Navigation Harness 1921 | -2/Protoforge | Found Alien Artifact 1928 | -2/Protoforge | Found Alien Artifact 1938 | -2/Protoforge | Found Prototype Ballistic Cannon 1938 | -2/Protoforge | Identified Cep. Helical Railcannon 1940 | -2/Protoforge | Found Prototype Energy Gun 1940 | -2/Protoforge | Identified Cep. Lightning Penetrator 1967 | -2/Protoforge | Found Prototype Ballistic Cannon 1967 | -2/Protoforge | Identified Cep. Miniperforator 1969 | -2/Protoforge | Found Faulty Cep. Miniperforator 1982 | -2/Protoforge | Found Prototype Ballistic Gun 1982 | -2/Protoforge | Identified Cep. XC Strikerail 1984 | -2/Protoforge | Found Prototype Energy Gun 1984 | -2/Protoforge | Identified Cep. Variable Chargecaster 1995 | -2/Protoforge | System corruption reached 10% 2025 | -2/Protoforge | Lost 3 parts (1p1u1w) 2067 | -2/Protoforge | UFD initiated attack on Protoforge 2067 | -2/Protoforge | Loaded intel: 3 recycling unit locations 2103 | -2/Protoforge | Optimus greeted in Protoforge 2112 | -2/Protoforge | Destroyed Decapitator 2141 | -2/Protoforge | Lost 4 allies 2349 | -2/Protoforge | UFD reported confirmed Drillbomb installation 2399 | -2/Protoforge | Spotted Executioner 2403 | -2/Protoforge | UFD reported confirmed Drillbomb installation 2409 | -2/Protoforge | Spotted Executioner 2434 | -2/Protoforge | Destroyed Executioner 2445 | -2/Protoforge | Core integrity fell below 50% 2450 | -2/Protoforge | Destroyed Executioner 2475 | -2/Protoforge | Destroyed 11 combat bots 2508 | -2/Protoforge | Spotted Striker 2509 | -2/Protoforge | Spotted Executioner 2512 | -2/Protoforge | Destroyed Executioner 2522 | -2/Protoforge | Found Cep. XC Strikerail 2525 | -2/Protoforge | Found Cep. XC Strikerail 2527 | -2/Protoforge | Found Faulty Cep. XC Strikerail 2529 | -2/Protoforge | Found Cep. XC Strikerail 2531 | -2/Protoforge | Reached level 31 2547 | -2/Protoforge | Destroyed Striker 2551 | -2/Protoforge | Spotted Striker 2551 | -2/Protoforge | Spotted Striker 2577 | -2/Protoforge | Destroyed 7 combat bots 2587 | -2/Protoforge | Destroyed Striker 2612 | -2/Protoforge | Destroyed Striker 2675 | -2/Protoforge | UFD reported confirmed Drillbomb installation 2716 | -2/Protoforge | Spotted Executioner 2725 | -2/Protoforge | Spotted Executioner 2792 | -2/Protoforge | Spotted Executioner 2794 | -2/Protoforge | Spotted Executioner 2794 | -2/Protoforge | Spotted Executioner 2796 | -2/Protoforge | Found Prototype Device 2796 | -2/Protoforge | Identified Cep. Weapon Articulator 2800 | -2/Protoforge | Spotted Striker 2807 | -2/Protoforge | Destroyed Striker 2823 | -2/Protoforge | Destroyed Executioner 2825 | -2/Protoforge | Crushed by falling debris 2836 | -2/Protoforge | Crushed by falling debris 2852 | -2/Protoforge | Destroyed Executioner 2867 | -2/Protoforge | Lost 3 parts (2u1w) 2873 | -2/Protoforge | Destroyed 8 combat bots 2899 | -2/Protoforge | Spotted Striker 2899 | -2/Protoforge | Spotted Executioner 2923 | -2/Protoforge | Spotted Striker 2925 | -2/Protoforge | Reached level 32 2925 | -2/Protoforge | Reached level 33 2925 | -2/Protoforge | Destroyed Superfortress 2940 | -2/Protoforge | Spotted Immortal 2940 | -2/Protoforge | Spotted Immortal 2940 | -2/Protoforge | Spotted Immortal 2941 | -2/Protoforge | Spotted V897-b 2941 | -2/Protoforge | Spotted V455-e 2941 | -2/Protoforge | Spotted V734-u 2941 | -2/Protoforge | Spotted V696-n 2947 | -2/Protoforge | Spotted Decapitator 2947 | -2/Protoforge | Spotted Decapitator 2947 | -2/Protoforge | Spotted Decapitator 2948 | -2/Protoforge | Spotted Immortal 2948 | -2/Protoforge | Spotted Immortal 2980 | -2/Protoforge | Found Prototype Flight Unit 2980 | -2/Protoforge | Identified Cep. Fieldthrust Drive 2982 | -2/Protoforge | Found Cep. Fieldthrust Drive 2997 | -2/Protoforge | Found Prototype Device 2997 | -2/Protoforge | Identified Exp. EM Disruption Field 2998 | -2/Protoforge | Found Prototype Device 2998 | -2/Protoforge | Identified Exp. Remote Shield 2999 | -2/Protoforge | System corruption reached 30% 3001 | -2/Protoforge | Found Exp. Remote Shield 3002 | -2/Protoforge | Found Prototype Device 3002 | -2/Protoforge | Identified Cep. Hardlight Director 3004 | -2/Protoforge | Found Prototype Protection 3004 | -2/Protoforge | Identified Cep. RG22 Armor 3007 | -2/Protoforge | Found Prototype Processor 3007 | -2/Protoforge | Identified Cep. Projectile Intercept Suite 3012 | -2/Protoforge | Destroyed V455-e 3022 | -2/Protoforge | Destroyed V897-b 3049 | -2/Protoforge | Spotted Decapitator 3049 | -2/Protoforge | Found Prototype Launcher 3049 | -2/Protoforge | Identified Cep. Arcsight Missile Launcher 3050 | -2/Protoforge | Found Prototype Launcher 3050 | -2/Protoforge | Identified Cep. Rapid Grenade Launcher 3054 | -2/Protoforge | Found Prototype Launcher 3054 | -2/Protoforge | Identified Cep. EMP Blanket Launcher 3062 | -2/Protoforge | Destroyed V696-n 3070 | -2/Protoforge | Destroyed Hotshot 3070 | -2/Protoforge | Destroyed Hotshot 3074 | -2/Protoforge | Destroyed Decapitator 3074 | -2/Protoforge | Destroyed Decapitator 3078 | -2/Protoforge | Destroyed Decapitator 3085 | -2/Protoforge | Destroyed Decapitator 3085 | -2/Protoforge | Destroyed Decapitator 3085 | -2/Protoforge | Destroyed Decapitator 3088 | -2/Protoforge | Destroyed Decapitator 3088 | -2/Protoforge | Destroyed Hotshot 3092 | -2/Protoforge | Spotted V883-x 3092 | -2/Protoforge | Spotted V062-t 3092 | -2/Protoforge | Spotted V447-u 3092 | -2/Protoforge | Spotted Immortal 3092 | -2/Protoforge | Spotted Immortal 3096 | -2/Protoforge | Found Prototype Device 3096 | -2/Protoforge | Identified Cep. Matter Streamer 3104 | -2/Protoforge | Destroyed V447-u 3111 | -2/Protoforge | Destroyed V062-t 3112 | -2/Protoforge | Destroyed V883-x 3120 | -2/Protoforge | Found Prototype Device 3120 | -2/Protoforge | Identified Exp. Active Sensor Suite 3130 | -2/Protoforge | Spotted V912-y 3130 | -2/Protoforge | Spotted V911-e 3133 | -2/Protoforge | Destroyed 21 combat bots 3147 | -2/Protoforge | Spotted V742-g 3147 | -2/Protoforge | Spotted V475-y 3165 | -2/Protoforge | Destroyed Striker 3168 | -2/Protoforge | Destroyed Immortal 3168 | -2/Protoforge | Destroyed Immortal 3218 | -2/Protoforge | Found Prototype Energy Cannon 3219 | -2/Protoforge | Found Prototype Ballistic Cannon 3220 | -2/Protoforge | Found Prototype Ballistic Cannon 3222 | -2/Protoforge | Found Faulty Cep. Variable Chargecaster 3223 | -2/Protoforge | Found Cep. XC Strikerail 3226 | -2/Protoforge | Found Prototype Energy Cannon 3227 | -2/Protoforge | Found Cep. Lightning Penetrator 3228 | -2/Protoforge | Destroyed 13 combat bots 3228 | -2/Protoforge | Found Cep. XC Strikerail 3231 | -2/Protoforge | Found Cep. Helical Railcannon 3232 | -2/Protoforge | Found Faulty Cep. Helical Railcannon 3233 | -2/Protoforge | Found Faulty Cep. XC Strikerail 3235 | -2/Protoforge | Found Cep. Variable Chargecaster 3236 | -2/Protoforge | Found Prototype Energy Cannon 3237 | -2/Protoforge | Found Prototype Ballistic Cannon 3239 | -2/Protoforge | Identified Cep. Plasma Driver (x3) 3241 | -2/Protoforge | Identified Cep. Heavy Railcannon (x3) 3245 | -2/Protoforge | Destroyed Hotshot 3266 | -2/Protoforge | Destroyed AP7-3 3269 | -2/Protoforge | Destroyed AP7-3 3283 | -2/Protoforge | Found Prototype Device 3283 | -2/Protoforge | Identified Cep. Thermoelectric Network 3285 | -2/Protoforge | Found Prototype Device 3285 | -2/Protoforge | Identified Cep. Dimensional Manipulator 3286 | -2/Protoforge | Found Prototype Device 3286 | -2/Protoforge | Identified Cep. Cloak Mesh 3289 | -2/Protoforge | Found Prototype Device 3289 | -2/Protoforge | Identified Cep. Impact Drone Bay 3326 | -2/Protoforge | Spotted V892-a 3329 | -2/Protoforge | Found Prototype Power Core 3329 | -2/Protoforge | Identified Cep. Zero-point Core 3362 | -2/Protoforge | Spotted Striker 3363 | -2/Protoforge | Spotted Striker 3368 | -2/Protoforge | Spotted Executioner 3417 | -2/Protoforge | Spotted Striker 3417 | -2/Protoforge | Spotted Executioner 3417 | -2/Protoforge | Spotted Executioner 3450 | -2/Protoforge | Destroyed V912-y 3484 | -2/Protoforge | Spotted Executioner 3488 | -2/Protoforge | Spotted Executioner 3488 | -2/Protoforge | Spotted Executioner 3492 | -2/Protoforge | Spotted Executioner 3492 | -2/Protoforge | Found UFD Drillbomb 3493 | -2/Protoforge | Found UFD Drillbomb 3495 | -2/Protoforge | Found UFD Drillbomb 3496 | -2/Protoforge | Found UFD Drillbomb 3497 | -2/Protoforge | Found UFD Drillbomb 3498 | -2/Protoforge | Found UFD Drillbomb 3499 | -2/Protoforge | Found UFD Drillbomb 3501 | -2/Protoforge | Found UFD Drillbomb 3502 | -2/Protoforge | Found UFD Drillbomb 3503 | -2/Protoforge | Found UFD Drillbomb 3517 | -2/Protoforge | Spotted Striker 3517 | -2/Protoforge | Spotted Executioner 3535 | -2/Protoforge | Installed UFD Drillbomb at designated target 3535 | -2/Protoforge | UFD reported confirmed Drillbomb installation 3559 | -2/Protoforge | Installed UFD Drillbomb at designated target 3559 | -2/Protoforge | UFD reported confirmed Drillbomb installation 3575 | -2/Protoforge | Installed UFD Drillbomb at designated target 3575 | -2/Protoforge | UFD reported confirmed Drillbomb installation 3592 | -2/Protoforge | Installed UFD Drillbomb at designated target 3592 | -2/Protoforge | UFD reported confirmed Drillbomb installation 3609 | -2/Protoforge | Installed UFD Drillbomb at designated target 3609 | -2/Protoforge | UFD reported confirmed Drillbomb installation 3623 | -2/Protoforge | Installed UFD Drillbomb at designated target 3623 | -2/Protoforge | UFD reported confirmed Drillbomb installation 3646 | -2/Protoforge | Installed UFD Drillbomb at designated target 3646 | -2/Protoforge | UFD reported confirmed Drillbomb installation 3647 | -2/Protoforge | UFD began Drillbomb countdown 3647 | -2/Protoforge | Reached level 34 3719 | -2/Protoforge | Spotted Executioner 3719 | -2/Protoforge | Spotted Executioner 3736 | -2/Protoforge | Spotted Executioner 3743 | -2/Protoforge | Spotted Executioner 3747 | *** | Defending 0bPrime! Last Messages --------------- 03742_ N-04 Retriever inserts Adv. Heat Sink into Forge Plexus. 03742_ Penetrated by Slug. 03743_ 0bP_NET: 4! 03743_ N-04 Retriever inserts Adv. Targeting Computer into Forge Plexus. 03744_ 0bP_NET: 3! 03744_ N-04 Retriever inserts Adv. Heat Sink into Forge Plexus. 03744_ Railslug penetrates V911-e. 03744_ Destroyed Prototype Device. 03744_ Railslug penetrates Reinforced Barrier. 03744_ Railslug penetrates V911-e. 03744_ Destroyed Cep. XC Strikerail. 03744_ Railslug penetrates Reinforced Barrier. 03744_ Arcsight Missile intercepted. 03745_ 0bP_NET: If you're in the wrong place at the wrong time, the wrong time being in just a moment, I'm sorry but prepare to die. 03745_ N-04 Retriever inserts Helical Railgun into Forge Plexus. 03745_ Penetrated by Slug. 03746_ 0bP_NET: Otherwise, enjoy the show! 03746_ N-04 Retriever collects Mak. Microdissipator Network. 03746_ N-04 Retriever collects Unknown Processor. Map ----- +----------------------------------------------------+ | #### ## " "" """"""""""""""""""""" | | #### """ ## """"" " %"""""""""""""""""""""" | | #### ## "% "" " %"""""""""""""""""""""" | | + """ ## "" " "" """""""""""""""""""""" | | +### ## "" " """"""""""""""""""""""" | | # """ ## "" " """"""""""""""""""""""" | | # ## " """"""""""""""""""""""" | | " ######## "" """"""""""""""""""""""" | | " ######## """ " " """"""""""""""""""""""" | | " ######## " "" """"""""""""""""""""""" | | ######## """ " % """"""""""""""""""""""" | | ########### " """ """"" " """"""""""""""""""""""" | | ########### "" " """"""""""""""""""""""" | | ########### " """""""""""""""""""""" | | ## ######## """""""""""""""""""""" | | # ######### """"""" "" """""""""""""""""""""" | | ########## """ " " """"""""""""""""""""" | | ########### " " """""""""""""""""""" | | ########### " """"""""""""""""""" | | ######## "" "" "" """""""""""""""""" | | ! ######## "" "" " """"""""""""""""" | | ! "### ### "" """ """""""""""""""j | | =! # # ## # " " """"""""" | | %=!= #!# " """ n n s | | % "=[ /# n " ""% " """"" " | | % %" # " """ @ | | %%%* "!==#% % !" % " | | %%%"" %%E%#n " " % " """ """ | | %%%"% %%E%;%% %% % " " """" """ | | %&&% %%C%; %% " " """ " """ | | %%% % % ; %"* %% " " " % | | ; ;%; %%%;#% %![! "" " js % | | ==*!=;"%# ==[ " """"" "" " E | | !# # #!*%!! " " " " SS | | " ####%%% " "" SS | | #####V " "" """""" " | | " # ####% "" " """ " """"" | | ### #### %""" " " " """"""""" | | " ############### ############################## | | " ######################????????????????????????? | | " ##################?##?????????????????????????? | | " ###################???????????????????????????? | | ##################????????????????????????????? | | #################?#??????????????????????????????? | | #########????#???????????????????????????????????? | | ##????????????????????????????????????????? | | "" ##????????????????????????????????????????? | | "" ##????????????????????????????????????????? | | "" ##????????????????????????????????????????? | | "" ##????????????????????????????????????????? | +----------------------------------------------------+ Best States ------------- Heat Dissipation 1009 Energy Generation 1713 Energy Capacity 15850 Matter Stores 11366 Matter Capacity 4100 Sight Range 83 Robot Scan Range 170 Terrain Scan Range 16 Terrain Scan Density 8710 Jamming Range 14 Cloak Strength 6 Additional Mass Support 30 Corruption Containment 12 Armor Coverage 750 Resistance: KI 55 Resistance: TH 55 Resistance: EX 55 Resistance: EM 35 Resistance: I 35 Resistance: S 35 Resistance: P 35 Weapon Shielding 90 Phase Shifting 5 Evasion (%) 77 Targeting Accuracy 30 Launcher Accuracy 60 Offensive Hacking 1160 Defensive Hacking 655 Item Schematics ----------------- Gui. Micro-nuke Launcher | -2/Protoforge | Hacked Graviton Cannon | -2/Protoforge | Hacked Hvy. Shield Leg | -2/Protoforge | Hacked Enh. Nova Cannon | -2/Protoforge | Hacked Robot Schematics ------------------ None Fabricated ------------ Nothing Repaired ---------- Nothing Alien Tech Used ----------------- None Achievements -------------- None Challenges ------------ None RPGLIKE | -11 -10 -9 -8 -8 -8 -8 -6 -5 -4 -3 -2 -2 -2 --------- Run | Yrd Mat Mat Mat Sto Rec Scr Fac Fac Fac Res Res Qua Frg Levels Raised 33 | . . 2 4 1 . 1 4 4 2 3 4 1 7 XP Earned 56317 | 6000 250 3292 5803 1300 1000 900 6785 4892 3505 4791 5291 1850 10658 XP Spent -438663140 | -438985085 . . . . . . . . . . . . 321945 Upgrades 2281 | 2154 . . . . . . . . . . . . 127 Propulsion Slot 5 | 5 . . . . . . . . . . . . . Utility Slot 12 | 12 . . . . . . . . . . . . . Weapon Slot 5 | 5 . . . . . . . . . . . . . Core Integrity 315 | 188 . . . . . . . . . . . . 127 Heat Dissipation 164 | 164 . . . . . . . . . . . . . Energy Generation 336 | 336 . . . . . . . . . . . . . Energy Storage 312 | 312 . . . . . . . . . . . . . Matter Storage 76 | 76 . . . . . . . . . . . . . Mass Support 87 | 87 . . . . . . . . . . . . . Inventory Capacity 145 | 145 . . . . . . . . . . . . . Sight Range 67 | 67 . . . . . . . . . . . . . Sensor Range 75 | 75 . . . . . . . . . . . . . Terrain Scan Density 87 | 87 . . . . . . . . . . . . . Ranged Accuracy 194 | 194 . . . . . . . . . . . . . Melee Accuracy 18 | 18 . . . . . . . . . . . . . Hack Attack % 228 | 228 . . . . . . . . . . . . . Hack Defense % 131 | 131 . . . . . . . . . . . . . KI Resistance % 4 | 4 . . . . . . . . . . . . . TH Resistance % 4 | 4 . . . . . . . . . . . . . EX Resistance % 4 | 4 . . . . . . . . . . . . . KI Damage % 4 | 4 . . . . . . . . . . . . . TH Damage % 4 | 4 . . . . . . . . . . . . . EX Damage % 4 | 4 . . . . . . . . . . . . . Protomatter Created 2254 | . 19 . 244 . . . 176 223 38 14 65 . 1475 Protomatter Decayed 9255 | . . . 106 . . . 176 180 25 . 48 . 8720 Game ------ Seed DamperHardenedBlade Manual? 0 Play Time 01:26:07 Cumulative 69.0 hours Start 2025.05.10 @ 22:38:12 End 2025.05.11 @ 00:15:07 Sessions 1 Manual Loads 0 Difficulty Explorer Special Mode Winter2019/RPGLIKE Game No. 66 Rogue 0 Adventurer 6 Explorer 60 Win Type 9 Total 23 Types 10/3/3/2/1/1/2/0/0/1 Lore% 46 Gallery% 59 Achievement% 87 Wizard Run 0 Options --------- Layout 0 ASCII 0 Keyboard 0 Movement Arrows Keybinds 0 Fullscreen 2 Font 18/SmallcapsGlow Map View 76x50 Zoom Use 20% Tactical HUD 1 Map Filters NONE Filters NONE Steam 1 RUN: dfd9c896-3844-43e0-81eb-e410d581f5d8